bitfinex/quotes_BTCUSD_20241002
["timestamp","ask_amount","ask_price","bid_price","bid_amount"]
[1727903125387,2.20271216,60985.0,60984.0,1e-06]
[1727903125628,2.56671216,60985.0,60984.0,1e-06]
[1727903125873,2.72989887,60985.0,60984.0,1e-06]
[1727903126123,2.81854904,60985.0,60984.0,1e-06]
[1727903126375,2.79154904,60985.0,60984.0,1e-06]
[1727903126622,2.44254904,60985.0,60984.0,1e-06]
[1727903126889,0.002,60977.0,60972.0,0.24623062]
[1727903127137,0.45026822,60973.0,60972.0,0.24623062]
[1727903127390,0.45026822,60973.0,60966.0,0.1054]
[1727903127391,0.264023,60967.0,60966.0,0.1054]
[1727903127656,0.45028422,60967.0,60966.0,0.1054]
[1727903128461,0.264036,60962.0,60961.0,0.0002]
[1727903128763,0.45029722,60962.0,60961.0,0.0002]
[1727903129000,0.7901936,60962.0,60961.0,0.0002]
[1727903129229,0.264036,60962.0,60961.0,0.0002]
[1727903129445,0.45029722,60962.0,60961.0,0.0002]
[1727903129891,0.265036,60962.0,60961.0,0.1822]
[1727903130821,0.268036,60962.0,60961.0,0.1822]
[1727903131037,0.267036,60962.0,60961.0,0.1822]
[1727903131255,0.264036,60962.0,60961.0,0.1822]
[1727903131487,0.32472152,60962.0,60961.0,0.0002]
[1727903131721,1.56345952,60962.0,60961.0,0.0002]
[1727903131945,1.06993395,60962.0,60961.0,0.0002]
[1727903132173,0.62326302,60962.0,60961.0,0.0002]
[1727903132643,0.63426302,60962.0,60961.0,0.0002]
[1727903132905,0.5705775,60962.0,60961.0,0.0002]
[1727903133122,0.45032122,60953.0,60952.0,0.058236]
[1727903133563,0.45032122,60953.0,60937.0,0.24786862]
[1727903133564,0.164082,60945.0,60940.0,0.0803]
[1727903134047,0.1687747,60945.0,60940.0,0.0803]
[1727903134294,0.2687747,60945.0,60940.0,0.0803]
[1727903136065,0.2687747,60945.0,60944.0,0.116036]
[1727903137012,0.29450115,60945.0,60944.0,0.116036]
[1727903137475,0.29450115,60945.0,60944.0,0.117036]
[1727903138173,0.29450115,60945.0,60944.0,0.118036]
[1727903138631,0.29450115,60945.0,60944.0,0.001636]
[1727903138632,0.66380489,60945.0,60944.0,0.001636]
[1727903138854,0.84382327,60945.0,60944.0,0.002636]
[1727903139085,0.29450115,60945.0,60944.0,0.002636]
[1727903139313,0.29450115,60945.0,60944.0,0.108236]
[1727903140732,0.29450115,60945.0,60944.0,0.106236]
[1727903140948,0.29650115,60945.0,60944.0,0.106236]
[1727903141169,0.29450115,60945.0,60944.0,0.106236]
[1727903141611,0.29450115,60945.0,60944.0,0.107236]
[1727903142495,0.29550115,60945.0,60944.0,0.107236]
[1727903142934,0.29450115,60945.0,60944.0,0.107236]
[1727903143628,0.54073177,60945.0,60944.0,0.107236]
[1727903143846,0.2687747,60945.0,60944.0,0.107236]
[1727903144532,0.28672172,60945.0,60944.0,0.107236]
[1727903145469,0.28572172,60945.0,60944.0,0.107236]
[1727903145683,0.28672172,60945.0,60944.0,0.107236]
[1727903146115,0.28672172,60945.0,60944.0,0.106236]
[1727903146324,0.28772172,60945.0,60944.0,0.106236]
[1727903146964,0.28572172,60945.0,60944.0,0.106236]
[1727903147209,0.28672172,60945.0,60944.0,0.106236]
[1727903147449,0.28772172,60945.0,60944.0,0.106236]
[1727903147677,0.28672172,60945.0,60944.0,0.106236]
[1727903148129,0.28572172,60945.0,60944.0,0.106236]
[1727903148405,0.31244928,60945.0,60944.0,0.106236]
[1727903148626,0.31144928,60945.0,60944.0,0.106236]
[1727903149058,0.31144928,60945.0,60944.0,0.107236]
[1727903151255,0.31144928,60945.0,60944.0,0.001636]
[1727903151704,0.31144928,60945.0,60944.0,0.002636]
[1727903152389,0.31144928,60945.0,60944.0,0.001636]
[1727903152647,0.31344928,60945.0,60944.0,0.001636]
[1727903152875,0.31544928,60945.0,60944.0,0.001636]
[1727903153384,0.164101,60938.0,60937.0,0.113838]
[1727903153624,0.18104802,60938.0,60937.0,0.113838]
[1727903153867,0.18577087,60938.0,60937.0,0.113838]
[1727903154971,0.18677087,60938.0,60937.0,0.114838]
[1727903155157,0.18577087,60938.0,60937.0,0.113838]
[1727903155666,0.18777087,60938.0,60937.0,0.114838]
[1727903155933,0.18777087,60938.0,60937.0,0.113838]
[1727903156293,0.47437877,60938.0,60937.0,0.114838]
[1727903156491,0.28877087,60938.0,60937.0,0.114838]
[1727903157034,0.28777087,60938.0,60937.0,0.114838]
[1727903157284,0.02166987,60938.0,60937.0,0.381641]
[1727903157797,0.02266987,60938.0,60937.0,0.382641]
[1727903158066,0.24623062,60944.0,60939.0,0.1075]
[1727903158351,0.41031562,60944.0,60939.0,0.271596]
[1727903158633,0.164089,60943.0,60940.0,0.1075]
[1727903158917,0.328166,60945.0,60940.0,0.1075]
[1727903159175,0.264087,60944.0,60941.0,0.1882]
[1727903159433,0.065786,60958.0,60939.0,0.164097]
[1727903159434,0.164074,60948.0,60947.0,0.182]
[1727903159996,0.164074,60948.0,60947.0,0.1041]
[1727903160870,0.16407,60950.0,60947.0,0.1041]
[1727903161112,0.165074,60948.0,60947.0,0.1041]
[1727903161366,0.19079885,60948.0,60947.0,0.1041]
[1727903161640,0.02672485,60948.0,60947.0,0.1041]
[1727903161907,0.02672485,60948.0,60947.0,0.271176]
[1727903162146,0.02672485,60948.0,60947.0,0.291176]
[1727903162147,0.002,60948.0,60947.0,0.291176]
[1727903162415,0.328102,60957.0,60942.0,0.328175]
[1727903162416,0.24623062,60953.0,60950.0,0.1875]
[1727903162680,0.24623062,60953.0,60950.0,0.1865]
[1727903162940,0.164061,60953.0,60950.0,0.1865]
[1727903163158,0.164066,60951.0,60950.0,0.1865]
[1727903163586,0.264066,60951.0,60950.0,0.1069]
[1727903164224,0.264066,60951.0,60938.0,0.0821]
[1727903164225,0.164098,60939.0,60938.0,0.0821]
[1727903164437,0.16409,60942.0,60941.0,0.24623062]
[1727903164649,0.328159,60946.0,60938.0,0.0821]
[1727903164650,0.164098,60939.0,60938.0,0.0821]
[1727903165697,0.164098,60939.0,60938.0,0.1867]
[1727903166136,0.164098,60939.0,60937.0,0.001638]
[1727903166137,0.264101,60938.0,60937.0,0.001638]
[1727903166349,0.31228784,60938.0,60937.0,0.001638]
[1727903166592,0.49889574,60938.0,60937.0,0.001638]
[1727903167251,0.54794491,60938.0,60937.0,0.001638]
[1727903167464,0.71113162,60938.0,60937.0,0.001638]
[1727903167669,0.66308245,60938.0,60937.0,0.001638]
[1727903167883,0.66408245,60938.0,60937.0,0.001638]
[1727903168309,0.57646949,60938.0,60937.0,0.001638]
[1727903168524,0.50289574,60938.0,60937.0,0.001638]
[1727903168732,0.50489574,60938.0,60937.0,0.001638]
[1727903168939,0.57846949,60938.0,60937.0,0.001638]
[1727903169419,0.50689574,60938.0,60937.0,0.001638]
[1727903169622,0.74174083,60938.0,60937.0,0.001638]
[1727903170039,0.74274083,60938.0,60937.0,0.001638]
[1727903170485,0.74074083,60938.0,60937.0,0.001638]
[1727903170689,0.50589574,60938.0,60937.0,0.001638]
[1727903170903,0.57955412,60938.0,60937.0,0.001638]
[1727903171335,0.50589574,60938.0,60937.0,0.001638]
[1727903171541,0.57955905,60938.0,60937.0,0.001638]
[1727903171975,0.60399408,60938.0,60937.0,0.001638]
[1727903172397,0.62651867,60938.0,60937.0,0.001638]
[1727903172608,0.60412063,60938.0,60937.0,0.001638]
[1727903173037,0.63724106,60938.0,60937.0,0.001638]
[1727903173259,0.31728784,60938.0,60937.0,0.001638]
[1727903173463,0.50389574,60938.0,60937.0,0.001638]
[1727903173878,0.57756849,60938.0,60937.0,0.001638]
[1727903174290,0.50389574,60938.0,60937.0,0.001638]
[1727903174517,0.57757269,60938.0,60937.0,0.001638]
[1727903174728,0.50853422,60938.0,60937.0,0.001638]
[1727903174973,1.02999079,60938.0,60937.0,0.001638]
[1727903175174,1.11189079,60938.0,60937.0,0.001638]
[1727903175613,0.4507439,60925.0,60924.0,0.23591228]
[1727903175816,0.49893074,60925.0,60924.0,0.23591228]
[1727903176020,0.264138,60924.0,60923.0,0.114438]
[1727903176441,0.26874458,60924.0,60923.0,0.114438]
[1727903177322,0.27174458,60924.0,60923.0,0.114438]
[1727903177526,0.32186149,60924.0,60923.0,0.114438]
[1727903177732,0.369993,60924.0,60923.0,0.114438]
[1727903177942,0.32187609,60924.0,60923.0,0.114438]
[1727903178195,0.32185516,60924.0,60923.0,0.114438]
[1727903178405,0.27274458,60924.0,60923.0,0.114438]
[1727903178838,0.26874458,60924.0,60923.0,0.114438]
[1727903179484,0.27174458,60924.0,60923.0,0.114438]
[1727903179704,0.26874458,60924.0,60923.0,0.114438]
[1727903180147,0.26974458,60924.0,60923.0,0.114438]
[1727903180366,0.27274458,60924.0,60923.0,0.114438]
[1727903180797,0.27574458,60924.0,60923.0,0.114438]
[1727903181014,0.27474458,60924.0,60923.0,0.114438]
[1727903181234,0.27874458,60924.0,60923.0,0.114438]
[1727903181908,0.27574458,60924.0,60923.0,0.114438]
[1727903182198,0.17874458,60924.0,60923.0,0.137438]
[1727903182703,0.16874458,60924.0,60923.0,0.137438]
[1727903182911,0.17374458,60924.0,60923.0,0.137438]
[1727903183123,0.17074458,60924.0,60923.0,0.137438]
[1727903183343,0.16874458,60924.0,60923.0,0.137438]
[1727903183557,0.16874458,60924.0,60923.0,0.138438]
[1727903183784,0.16874458,60924.0,60923.0,0.137438]
[1727903183998,0.16974458,60924.0,60923.0,0.137438]
[1727903184689,0.17074458,60924.0,60923.0,0.137438]
[1727903185751,0.16974458,60924.0,60923.0,0.137438]
[1727903186430,0.17174458,60924.0,60923.0,0.137438]
[1727903187564,0.17074458,60924.0,60923.0,0.137438]
[1727903187853,0.16874458,60924.0,60923.0,0.137438]
[1727903191039,0.16874458,60924.0,60923.0,0.139438]
[1727903191738,0.19447974,60924.0,60923.0,0.139438]
[1727903193032,0.19447974,60924.0,60923.0,0.116438]
[1727903193285,0.29447974,60924.0,60923.0,0.003638]
[1727903193811,0.29447974,60924.0,60923.0,0.001638]
[1727903194007,0.26974458,60924.0,60923.0,0.001638]
[1727903194244,0.27374458,60924.0,60923.0,0.001638]
[1727903194484,0.27274458,60924.0,60923.0,0.024638]
[1727903194903,0.27974458,60924.0,60923.0,0.024638]
[1727903195146,0.29676737,60924.0,60923.0,0.024638]
[1727903195800,0.29676737,60924.0,60923.0,0.136638]
[1727903196226,0.28876737,60924.0,60923.0,0.136638]
[1727903196441,0.18876737,60924.0,60923.0,0.138638]
[1727903196651,0.18576737,60924.0,60923.0,0.138638]
[1727903196866,0.18876737,60924.0,60923.0,0.138638]
[1727903197087,0.18976737,60924.0,60923.0,0.143638]
[1727903197301,0.18678201,60924.0,60923.0,0.143638]
[1727903197772,0.18778201,60924.0,60923.0,0.143638]
[1727903200209,0.21351676,60924.0,60923.0,0.143638]
[1727903200425,0.21354753,60924.0,60923.0,0.143638]
[1727903200654,0.04940953,60924.0,60923.0,0.143638]
[1727903200879,0.21354753,60924.0,60923.0,0.143638]
[1727903201092,0.02367478,60924.0,60923.0,0.143638]
[1727903201315,0.18781278,60924.0,60923.0,0.143638]
[1727903203026,0.18945078,60924.0,60923.0,0.143638]
[1727903205521,0.02531278,60924.0,60923.0,0.143638]
[1727903208405,0.02531278,60924.0,60923.0,0.307779]
[1727903208658,0.02531278,60924.0,60923.0,0.388679]
[1727903208909,0.0207062,60924.0,60923.0,0.388679]
[1727903209157,0.003638,60924.0,60923.0,0.388679]
[1727903209406,0.002638,60924.0,60923.0,0.381679]
[1727903209692,0.003638,60924.0,60923.0,0.387679]
[1727903210175,0.00832124,60924.0,60923.0,0.387679]
[1727903210427,0.002638,60924.0,60923.0,0.387679]
[1727903210677,0.003638,60924.0,60923.0,0.392679]
[1727903210926,0.0093264,60924.0,60923.0,0.392679]
[1727903211175,0.003638,60924.0,60923.0,0.392679]
[1727903211421,0.03505905,60924.0,60923.0,0.392679]
[1727903211706,0.02937065,60924.0,60923.0,0.392679]
[1727903211885,0.00931951,60924.0,60923.0,0.392679]
[1727903212415,0.003638,60924.0,60923.0,0.392679]
[1727903215592,0.24623062,60936.0,60935.0,0.292209]
[1727903215837,0.24623062,60936.0,60935.0,0.370509]
[1727903216366,0.00571886,60936.0,60935.0,0.370509]
[1727903216881,0.001638,60938.0,60935.0,0.370509]
[1727903216882,0.001638,60938.0,60937.0,0.023]
[1727903217188,0.001638,60938.0,60937.0,0.187103]
[1727903217662,0.001638,60938.0,60937.0,0.19037688]
[1727903217929,0.001638,60938.0,60937.0,0.19509828]
[1727903218695,0.002638,60938.0,60937.0,0.1968244]
[1727903219701,0.00836386,60938.0,60937.0,0.1968244]
[1727903219963,0.00836386,60938.0,60937.0,0.2108244]
[1727903220716,0.002638,60938.0,60937.0,0.2108244]
[1727903220922,0.002638,60938.0,60937.0,0.21237909]
[1727903221355,0.00837577,60938.0,60937.0,0.21237909]
[1727903221569,0.002638,60938.0,60937.0,0.21237909]
[1727903221792,0.00837577,60938.0,60937.0,0.21237909]
[1727903222047,0.002638,60938.0,60937.0,0.3910244]
[1727903224080,0.00834044,60938.0,60937.0,0.3910244]
[1727903224301,0.002638,60938.0,60937.0,0.3910244]
[1727903226531,0.019528,60938.0,60937.0,0.3910244]
[1727903227019,0.183629,60938.0,60937.0,0.1283214]
[1727903227262,0.183629,60938.0,60937.0,0.0237214]
[1727903227476,0.18936358,60938.0,60937.0,0.0237214]
[1727903228393,0.18936358,60938.0,60937.0,0.0467214]
[1727903231038,0.21509239,60938.0,60937.0,0.0467214]
[1727903231949,0.21509239,60938.0,60937.0,0.0237214]
[1727903232415,0.19820239,60938.0,60937.0,0.0237214]
[1727903232856,0.19720239,60938.0,60937.0,0.0187214]
[1727903233071,0.19720239,60938.0,60937.0,0.0067214]
[1727903233301,0.19720239,60938.0,60937.0,0.0087214]
[1727903233552,0.27710239,60938.0,60937.0,0.0087214]
[1727903233785,0.25137358,60938.0,60937.0,0.0087214]
[1727903234007,0.35137358,60938.0,60937.0,0.0087214]
[1727903234231,0.64071026,60938.0,60937.0,0.0087214]
[1727903234454,0.39949726,60938.0,60937.0,0.0087214]
[1727903234670,0.84520526,60938.0,60937.0,0.0087214]
[1727903234884,0.94342259,60938.0,60937.0,0.0087214]
[1727903235101,0.94342259,60938.0,60937.0,0.0067214]
[1727903235540,0.94642259,60938.0,60937.0,0.0047214]
[1727903235764,0.94842259,60938.0,60937.0,0.0047214]
[1727903235986,0.94342259,60938.0,60937.0,0.0047214]
[1727903236500,0.79008526,60938.0,60937.0,0.0047214]
[1727903236751,0.60174426,60938.0,60937.0,0.0047214]
[1727903236968,0.48115174,60938.0,60937.0,0.0047214]
[1727903237201,0.40749726,60938.0,60937.0,0.0047214]
[1727903238513,0.48115174,60938.0,60937.0,0.0047214]
[1727903238701,0.40749726,60938.0,60937.0,0.0047214]
[1727903238971,0.50571857,60938.0,60937.0,0.0047214]
[1727903239412,0.40749726,60938.0,60937.0,0.0047214]
[1727903240595,0.53025473,60938.0,60937.0,0.0047214]
[1727903240860,0.64075677,60938.0,60937.0,0.0047214]
[1727903241347,0.80394348,60938.0,60937.0,0.0047214]
[1727903241559,0.95125245,60938.0,60937.0,0.0047214]
[1727903241773,0.74663597,60938.0,60937.0,0.0047214]
[1727903241990,0.89402502,60938.0,60937.0,0.0047214]
[1727903242206,0.74863597,60938.0,60937.0,0.0047214]
[1727903242639,0.91975828,60938.0,60937.0,0.0047214]
[1727903243074,0.92175828,60938.0,60937.0,0.0047214]
[1727903244034,0.92175828,60938.0,60937.0,4e-07]
[1727903244035,0.89151954,60938.0,60937.0,4e-07]
[1727903244123,0.86578391,60938.0,60937.0,4e-07]
[1727903244335,0.68983191,60938.0,60937.0,4e-07]
[1727903244774,0.5226452,60938.0,60937.0,4e-07]
[1727903245008,0.41149726,60938.0,60937.0,0.0010004]
[1727903245468,1.15389326,60938.0,60937.0,0.0010004]
[1727903245704,1.14789326,60938.0,60937.0,4e-07]
[1727903245915,0.41349726,60938.0,60937.0,0.0010004]
[1727903246151,0.41349726,60938.0,60937.0,0.0020004]
[1727903246152,0.41749726,60938.0,60937.0,0.0020004]
[1727903246384,0.93326626,60938.0,60937.0,4e-07]
[1727903246845,0.40549726,60938.0,60937.0,4e-07]
[1727903247106,0.41149726,60938.0,60937.0,0.0010004]
[1727903247591,0.41149726,60938.0,60937.0,0.0020004]
[1727903247592,0.42249726,60938.0,60937.0,0.0020004]
[1727903247831,0.42249726,60938.0,60937.0,0.00084559]
[1727903247832,0.63137326,60938.0,60937.0,0.00084559]
[1727903248120,0.164136,60925.0,60924.0,0.000819]
[1727903248583,0.16982311,60925.0,60924.0,0.000819]
[1727903248848,0.29555893,60925.0,60924.0,0.000819]
[1727903249106,0.26982311,60925.0,60924.0,0.000819]
[1727903249872,0.26982311,60925.0,60924.0,0.008819]
[1727903249873,0.37724504,60925.0,60924.0,0.008819]
[1727903250107,0.31893753,60925.0,60924.0,0.000819]
[1727903250354,0.29556052,60925.0,60924.0,0.003819]
[1727903250786,0.34466672,60925.0,60924.0,0.003819]
[1727903250994,0.29556052,60925.0,60924.0,0.003819]
[1727903251433,0.29656052,60925.0,60924.0,0.011819]
[1727903251943,0.54279114,60925.0,60924.0,0.011819]
[1727903252207,1.1714639,60925.0,60924.0,0.006819]
[1727903252493,1.00725044,60925.0,60924.0,0.006819]
[1727903252739,1.00525044,60925.0,60924.0,0.003819]
[1727903253051,1.01325044,60925.0,60924.0,0.000819]
[1727903253273,1.01825044,60925.0,60924.0,0.000819]
[1727903253531,1.01825044,60925.0,60908.0,0.24623062]
[1727903253532,1.01825044,60925.0,60887.0,0.32383062]
[1727903253533,0.264187,60906.0,60887.0,0.32383062]
[1727903253794,0.166198,60902.0,60900.0,0.001678]
[1727903254041,2.55947178,60902.0,60900.0,0.001678]
[1727903254413,2.58201202,60902.0,60900.0,0.001678]
[1727903254600,2.86783054,60902.0,60900.0,0.001678]
[1727903255067,2.74519873,60902.0,60900.0,0.001678]
[1727903255294,2.72831327,60902.0,60900.0,0.001678]
[1727903255520,0.3524,60901.0,60900.0,1e-06]
[1727903255777,1.89506731,60901.0,60900.0,1e-06]
[1727903256030,1.86067256,60901.0,60900.0,1e-06]
[1727903256301,1.86067256,60901.0,60881.0,0.24643062]
[1727903256302,0.166227,60891.0,60881.0,0.24643062]
[1727903256594,0.347427,60891.0,60881.0,0.24643062]
[1727903256833,0.59615682,60891.0,60881.0,0.24643062]
[1727903257310,0.57040032,60891.0,60881.0,0.0002]
[1727903258031,0.57040032,60891.0,60890.0,1e-06]
[1727903258753,0.57040032,60891.0,60881.0,0.0002]
[1727903258754,0.002,60882.0,60881.0,0.0002]
[1727903259015,0.3443,60882.0,60881.0,0.0002]
[1727903259252,0.3443,60882.0,60861.0,0.0002]
[1727903259253,0.166265,60877.0,60861.0,0.0002]
[1727903259721,0.266265,60877.0,60861.0,0.0002]
[1727903259725,0.3297975,60877.0,60861.0,0.0002]
[1727903260246,0.35555875,60877.0,60863.0,0.000818]
[1727903260508,0.36155875,60877.0,60863.0,0.000818]
[1727903260755,0.52474546,60877.0,60863.0,0.000818]
[1727903261223,0.77097608,60877.0,60863.0,0.000818]
[1727903261449,0.77097608,60877.0,60840.0,0.000818]
[1727903261450,0.164325,60855.0,60854.0,0.24623062]
[1727903261671,0.264325,60855.0,60854.0,0.24623062]
[1727903261890,0.264325,60855.0,60847.0,0.114]
[1727903261891,0.264343,60848.0,60847.0,0.114]
[1727903262368,0.26436,60842.0,60841.0,0.0002]
[1727903262820,0.2703939,60842.0,60841.0,0.0002]
[1727903263491,0.2961634,60842.0,60841.0,0.0002]
[1727903263984,0.1703939,60842.0,60841.0,0.0002]
[1727903264221,0.0060339,60842.0,60841.0,0.187562]
[1727903264443,0.005,60848.0,60847.0,0.290846]
[1727903264665,0.005,60848.0,60847.0,0.1265]
[1727903264666,0.008,60848.0,60847.0,0.1265]
[1727903264902,0.008,60848.0,60847.0,0.290846]
[1727903264903,0.0200968,60848.0,60847.0,0.290846]
[1727903265112,0.003,60848.0,60847.0,0.373146]
[1727903265366,0.328609,60863.0,60852.0,0.1285]
[1727903265584,0.164317,60858.0,60854.0,0.164326]
[1727903265843,0.01219704,60859.0,60858.0,0.164314]
[1727903266059,0.24623062,60868.0,60860.0,0.328618]
[1727903266295,0.24623062,60868.0,60864.0,0.023]
[1727903266807,0.24623062,60868.0,60867.0,0.187292]
[1727903267101,0.328544,60875.0,60866.0,0.328588]
[1727903267319,0.164274,60874.0,60868.0,0.492865]
[1727903267560,0.164275,60874.0,60870.0,0.164283]
[1727903267821,0.328512,60881.0,60870.0,0.164283]
[1727903267822,0.24623062,60889.0,60870.0,0.108]
[1727903268078,0.24623062,60878.0,60877.0,0.164265]
[1727903268326,0.24623062,60889.0,60877.0,0.164265]
[1727903268327,0.57469862,60889.0,60881.0,0.49276]
[1727903268546,0.24623062,60882.0,60881.0,0.164254]
[1727903268799,0.164236,60888.0,60883.0,0.164247]
[1727903269046,0.24623062,60889.0,60885.0,0.023]
[1727903269310,0.328434,60895.0,60887.0,0.164237]
[1727903269311,0.164217,60895.0,60887.0,0.164237]
[1727903269559,0.4716,60909.0,60884.0,0.023]
[1727903269560,0.164234,60889.0,60884.0,0.023]
[1727903269816,0.1,60891.0,60887.0,0.164237]
[1727903270055,0.32841,60900.0,60888.0,0.023]
[1727903270302,0.24623062,60903.0,60887.0,0.328475]
[1727903270303,0.24623062,60895.0,60892.0,0.164225]
[1727903270535,0.24623062,60903.0,60897.0,0.023]
[1727903270753,0.18995624,60898.0,60897.0,0.023]
[1727903270999,0.164215,60896.0,60893.0,0.023]
[1727903271663,0.004,60895.0,60893.0,0.023]
[1727903271933,0.02674724,60898.0,60894.0,0.023]
[1727903272193,0.164211,60897.0,60894.0,0.023]
[1727903272413,0.001,60896.0,60894.0,0.023]
[1727903272635,0.001,60896.0,60884.0,0.57672162]
[1727903272636,0.164225,60892.0,60891.0,0.023]
[1727903272850,0.57466462,60895.0,60881.0,0.328506]
[1727903272851,0.328445,60893.0,60881.0,0.328506]
[1727903273077,0.328466,60890.0,60881.0,0.328506]
[1727903273306,0.328466,60889.0,60883.0,0.359049]
[1727903273541,0.02574863,60889.0,60884.0,0.164245]
[1727903273770,0.328453,60892.0,60883.0,0.1948]
[1727903273989,0.164237,60888.0,60883.0,0.359049]
[1727903274214,0.328461,60890.0,60883.0,0.1948]
[1727903274436,0.328461,60890.0,60883.0,0.1117]
[1727903274437,0.164246,60884.0,60883.0,0.1117]
[1727903274655,0.001,60890.0,60883.0,0.1117]
[1727903274656,0.16424,60887.0,60883.0,0.1117]
[1727903274873,0.164244,60885.0,60884.0,0.000819]
[1727903275333,0.37108646,60885.0,60884.0,0.000819]
[1727903275554,0.68934113,60885.0,60884.0,0.000819]
[1727903275773,0.631847,60885.0,60884.0,0.000819]
[1727903276004,0.265244,60885.0,60884.0,0.000819]
[1727903276664,0.267244,60885.0,60884.0,0.000819]
[1727903276887,0.266244,60885.0,60884.0,0.000819]
[1727903277579,0.269244,60885.0,60884.0,0.000819]
[1727903278025,0.266244,60885.0,60884.0,0.000819]
[1727903278242,0.277244,60885.0,60884.0,0.000819]
[1727903278703,0.273244,60885.0,60884.0,0.000819]
[1727903278922,0.164262,60878.0,60877.0,0.023]
[1727903279577,0.17889599,60878.0,60877.0,0.023]
[1727903280046,0.20464961,60878.0,60877.0,0.023]
[1727903280491,0.04038761,60878.0,60877.0,0.023]
[1727903280931,0.20464961,60878.0,60877.0,0.023]
[1727903281410,0.20564961,60878.0,60877.0,0.023]
[1727903281858,0.20464961,60878.0,60877.0,0.023]
[1727903282098,0.20564961,60878.0,60877.0,0.025]
[1727903282362,0.04038761,60878.0,60877.0,0.265565]
[1727903282625,0.04038761,60878.0,60877.0,0.1033]
[1727903282872,0.04138761,60878.0,60877.0,0.1033]
[1727903283105,0.04238761,60878.0,60877.0,0.1033]
[1727903283350,0.04138761,60878.0,60877.0,0.1013]
[1727903283591,0.04138761,60878.0,60877.0,0.269565]
[1727903283865,0.01563399,60878.0,60877.0,0.26884979]
[1727903284145,0.002,60878.0,60877.0,0.27584979]
[1727903284651,0.002,60878.0,60877.0,0.272565]
[1727903284652,0.001,60878.0,60877.0,0.272565]
[1727903284893,0.24623062,60885.0,60884.0,0.187246]
[1727903285430,0.01463932,60885.0,60884.0,0.187246]
[1727903285672,0.24623062,60896.0,60892.0,0.164225]
[1727903285915,0.164219,60894.0,60893.0,0.023]
[1727903286157,0.328435,60895.0,60890.0,0.16423]
[1727903286158,0.164222,60893.0,60890.0,0.16423]
[1727903286400,0.328447,60893.0,60889.0,0.023]
[1727903286682,0.24623062,60896.0,60889.0,0.023]
[1727903286683,0.16423,60890.0,60889.0,0.023]
[1727903286954,0.16423,60890.0,60886.0,0.328478]
[1727903286955,0.01740376,60890.0,60886.0,0.328478]
[1727903287199,0.01740376,60890.0,60889.0,0.023]
[1727903287200,0.03205707,60890.0,60889.0,0.023]
[1727903287446,0.01458101,60890.0,60888.0,0.023]
[1727903287693,0.03205427,60890.0,60888.0,0.023]
[1727903287946,0.01747326,60889.0,60888.0,0.187235]
[1727903288208,0.03494889,60889.0,60888.0,0.187235]
[1727903289231,0.03494889,60889.0,60882.0,0.002]
[1727903289232,0.164239,60887.0,60881.0,0.0777]
[1727903289475,0.03494889,60889.0,60881.0,0.0777]
[1727903289476,0.18270863,60889.0,60888.0,0.004]
[1727903289749,0.20015399,60889.0,60888.0,0.004]
[1727903290023,0.20115399,60889.0,60888.0,0.004]
[1727903290338,0.20115399,60889.0,60877.0,0.000817]
[1727903290339,0.164262,60878.0,60877.0,0.000817]
[1727903290559,0.164262,60878.0,60877.0,0.24704762]
[1727903290560,0.18170736,60878.0,60877.0,0.24704762]
[1727903290817,0.01743831,60878.0,60877.0,0.000817]
[1727903291083,0.01743831,60878.0,60877.0,0.165082]
[1727903291574,0.01743831,60878.0,60877.0,0.188082]
[1727903291575,0.0431916,60878.0,60877.0,0.188082]
[1727903292078,0.0431916,60878.0,60877.0,0.292782]
[1727903292337,0.0441916,60878.0,60877.0,0.295782]
[1727903292581,0.0451916,60878.0,60877.0,0.292782]
[1727903292839,0.0461916,60878.0,60877.0,0.295782]
[1727903293065,0.0461916,60878.0,60877.0,0.128517]
[1727903293066,0.0441916,60878.0,60877.0,0.128517]
[1727903293363,0.0451916,60878.0,60877.0,0.105517]
[1727903293617,0.0451916,60878.0,60877.0,0.000817]
[1727903293868,0.02043831,60878.0,60877.0,0.168082]
[1727903294079,0.01943831,60878.0,60877.0,0.249882]
[1727903294523,0.01943831,60878.0,60877.0,0.272882]
[1727903294964,0.01743831,60878.0,60877.0,0.269882]
[1727903295188,0.18170031,60878.0,60877.0,0.023817]
[1727903295437,0.18170031,60878.0,60877.0,0.003817]
[1727903295438,0.19575246,60878.0,60877.0,0.003817]
[1727903295678,0.19475246,60878.0,60877.0,0.000817]
[1727903295901,0.19475246,60878.0,60877.0,0.003817]
[1727903296122,0.19475246,60878.0,60877.0,0.000817]
[1727903296123,0.19575246,60878.0,60877.0,0.000817]
[1727903296344,0.19575246,60878.0,60877.0,0.003817]
[1727903296769,0.19475246,60878.0,60877.0,0.000817]
[1727903297062,0.19675246,60878.0,60877.0,0.003817]
[1727903297721,0.17931415,60878.0,60877.0,0.003817]
[1727903298211,0.19481256,60878.0,60877.0,0.000817]
[1727903298469,0.02955056,60878.0,60877.0,0.188082]
[1727903298700,0.03055056,60878.0,60877.0,0.19136681]
[1727903298924,0.01849841,60878.0,60877.0,0.29986681]
[1727903299155,0.01949841,60878.0,60877.0,0.38566681]
[1727903299382,0.01849841,60878.0,60877.0,0.379382]
[1727903299832,0.02013241,60878.0,60877.0,0.382382]
[1727903300045,0.01913241,60878.0,60877.0,0.379382]
[1727903300269,0.02013241,60878.0,60877.0,0.379382]
[1727903301453,0.02012501,60878.0,60877.0,0.382382]
[1727903301677,0.02112501,60878.0,60877.0,0.382382]
[1727903301905,0.02012501,60878.0,60877.0,0.379382]
[1727903302132,0.02012501,60878.0,60877.0,0.382382]
[1727903302367,0.02575062,60890.0,60888.0,0.187235]
[1727903302596,0.02575062,60890.0,60888.0,0.377735]
[1727903302821,0.25602696,60889.0,60888.0,0.377735]
[1727903303051,0.02575062,60890.0,60889.0,0.187233]
[1727903303964,0.164212,60897.0,60889.0,0.187233]
[1727903303965,0.164212,60897.0,60893.0,0.023]
[1727903304183,0.164212,60897.0,60893.0,0.18722]
[1727903304442,0.01691753,60895.0,60893.0,0.18722]
[1727903304656,0.164212,60897.0,60893.0,0.18722]
[1727903304657,0.01691753,60894.0,60893.0,0.18722]